bitfinex/quotes_BTCUSD_20260311
["timestamp","ask_amount","ask_price","bid_price","bid_amount"]
[1773272703990,0.01891941,71183.0,70271.0,0.02370771]
[1773272704199,0.09446613,70299.0,70273.0,0.02362782]
[1773272704342,0.23390993,70299.0,70273.0,0.02362782]
[1773272704540,0.00144,70298.0,70275.0,0.02362782]
[1773272704740,0.1408838,70299.0,70269.0,0.07115513]
[1773272704741,0.12764616,70290.0,70269.0,0.07115513]
[1773272705074,0.02485579,70289.0,70269.0,0.07259513]
[1773272705230,0.00144,70288.0,70270.0,0.02362782]
[1773272705432,0.00144,70288.0,70269.0,0.07115513]
[1773272706020,0.00144,70288.0,70270.0,0.02347251]
[1773272707989,0.07113691,70287.0,70271.0,0.0711531]
[1773272710321,0.00144,70288.0,70271.0,0.0711531]
[1773272710659,0.07257616,70288.0,70271.0,0.0711531]
[1773272710818,0.07257616,70288.0,70271.0,0.09439948]
[1773272711004,0.07257616,70288.0,70271.0,0.0711531]
[1773272711202,0.07257616,70288.0,70271.0,0.09439948]
[1773272711700,0.07257616,70288.0,70271.0,0.02324638]
[1773272711910,0.07257616,70288.0,70269.0,0.07259513]
[1773272711911,0.07257616,70288.0,70257.0,0.00144]
[1773272711912,0.38293848,70281.0,70257.0,0.00144]
[1773272712122,0.38293848,70281.0,70246.0,0.07117793]
[1773272712123,0.12764616,70271.0,70246.0,0.07117793]
[1773272712333,0.07115513,70269.0,70248.0,0.07137632]
[1773272712717,0.07115513,70269.0,70249.0,0.01147278]
[1773272713633,0.00144,70268.0,70251.0,0.0002]
[1773272713786,0.00144,70268.0,70252.0,0.01147278]
[1773272713990,0.07115022,70274.0,70251.0,0.0002]
[1773272713991,0.16917439,70281.0,70254.0,0.01147278]
[1773272714179,0.14260854,70280.0,70254.0,0.01147278]
[1773272714388,0.071145,70279.0,70256.0,0.01132625]
[1773272714598,0.00144,70278.0,70256.0,0.01132625]
[1773272714838,0.14116854,70280.0,70256.0,0.01132625]
[1773272715066,0.00011156,70281.0,70256.0,0.01132625]
[1773272715224,0.07125457,70281.0,70256.0,0.01132625]
[1773272715422,0.00011156,70281.0,70256.0,0.01132625]
[1773272715641,0.00022001,70287.0,70256.0,0.01132625]
[1773272715642,0.00144,70285.0,70258.0,0.02514163]
[1773272715849,0.00144,70285.0,70260.0,0.01132625]
[1773272716050,0.00144,70285.0,70262.0,0.01145908]
[1773272716244,0.00144,70285.0,70263.0,0.0711612]
[1773272716451,0.00144,70285.0,70264.0,0.01145908]
[1773272718747,0.07135739,70287.0,70264.0,0.01145908]
[1773272718748,0.00022001,70287.0,70266.0,0.0113594]
[1773272719748,5.501e-05,70287.0,70266.0,0.0113594]
[1773272719951,0.07278889,70295.0,70268.0,0.0113594]
[1773272719952,0.00157161,70295.0,70268.0,0.0113594]
[1773272720250,0.07270143,70295.0,70268.0,0.0113594]
[1773272720756,0.07270143,70295.0,70269.0,0.07115513]
[1773272720959,0.07270143,70295.0,70270.0,0.005]
[1773272721657,0.07270143,70295.0,70271.0,0.00144]
[1773272721867,0.07270143,70295.0,70272.0,0.005]
[1773272722073,0.07270143,70295.0,70269.0,0.07115513]
[1773272722275,0.02326184,70289.0,70269.0,0.07115513]
[1773272722431,0.00144,70288.0,70269.0,0.07115513]
[1773272723034,0.07113691,70287.0,70268.0,0.07259513]
[1773272723242,0.07113691,70287.0,70268.0,0.07279513]
[1773272723562,0.07113457,70290.0,70270.0,0.005]
[1773272723758,0.00144,70289.0,70270.0,0.005]
[1773272724130,0.0232412,70288.0,70270.0,0.005]
[1773272724459,0.00144,70287.0,70270.0,0.005]
[1773272724853,0.14113136,70292.0,70270.0,0.005]
[1773272725062,0.00144,70291.0,70272.0,0.0181497]
[1773272725261,0.07257292,70291.0,70272.0,0.0181497]
[1773272725666,0.00144,70291.0,70272.0,0.0181497]
[1773272725872,0.00144,70290.0,70272.0,0.0181497]
[1773272726085,0.00144,70289.0,70272.0,0.0181497]
[1773272726284,0.07113181,70293.0,70272.0,0.0181497]
[1773272726522,0.00144,70292.0,70272.0,0.0181497]
[1773272726831,0.00144,70291.0,70272.0,0.0181497]
[1773272727216,0.00144,70291.0,70273.0,0.07259108]
[1773272727217,0.07113387,70290.0,70273.0,0.07259108]
[1773272727426,0.07113387,70290.0,70273.0,0.09069517]
[1773272727959,0.07113387,70290.0,70274.0,0.01810409]
[1773272728293,0.07113373,70291.0,70274.0,0.01810409]
[1773272728714,0.07113057,70294.0,70274.0,0.01810409]
[1773272729174,0.07113128,70293.0,70275.0,0.07114905]
[1773272729370,0.00144,70292.0,70276.0,0.01795745]
[1773272729603,0.00013161,70295.0,70276.0,0.01795745]
[1773272731331,0.00013161,70295.0,70278.0,0.01781497]
[1773272731533,0.00013161,70295.0,70280.0,0.01781497]
[1773272731744,0.00013161,70295.0,70282.0,0.01781497]
[1773272733494,0.00013161,70295.0,70283.0,0.09271494]
[1773272734702,0.00013161,70295.0,70283.0,0.09415494]
[1773272736193,0.00013161,70295.0,70284.0,0.02128889]
[1773272736527,6.581e-05,70295.0,70284.0,0.02128889]
[1773272736732,0.07133843,70306.0,70284.0,0.02128889]
[1773272736979,0.07145007,70306.0,70284.0,0.02128889]
[1773272737151,0.07144937,70306.0,70284.0,0.02128889]
[1773272737431,0.07144937,70306.0,70285.0,0.07113893]
[1773272737647,0.07144937,70306.0,70286.0,0.02128889]
[1773272738675,0.07277611,70308.0,70292.0,0.02108046]
[1773272738676,5.501e-05,70308.0,70292.0,0.02108046]
[1773272738965,0.07254798,70316.0,70292.0,0.02108046]
[1773272738966,0.07110161,70322.0,70298.0,0.12764616]
[1773272739184,0.07110161,70322.0,70293.0,0.00144]
[1773272739185,0.07060833,70321.0,70299.0,0.02108046]
[1773272739360,0.00144,70323.0,70301.0,0.02108046]
[1773272739569,0.00144,70323.0,70305.0,0.02108046]
[1773272739993,0.07144648,70329.0,70305.0,0.02108046]
[1773272740214,0.07144631,70329.0,70305.0,0.02108046]
[1773272741419,0.07144631,70329.0,70307.0,0.03784758]
[1773272741665,0.07144631,70329.0,70308.0,0.07111566]
[1773272741871,0.07144631,70329.0,70299.0,0.07112439]
[1773272742077,0.07144631,70329.0,70305.0,0.001]
[1773272742274,0.21217523,70329.0,70305.0,0.001]
[1773272742655,0.00022001,70323.0,70305.0,0.001]
[1773272742856,0.00144,70322.0,70305.0,0.001]
[1773272743362,0.00144,70322.0,70301.0,0.03775072]
[1773272743764,0.07110251,70321.0,70303.0,0.03775072]
[1773272744663,0.07110251,70321.0,70300.0,0.07256375]
[1773272745037,0.07110251,70321.0,70300.0,0.07112375]
[1773272745463,0.0234074,70319.0,70296.0,0.03774748]
[1773272745692,0.07110554,70318.0,70292.0,0.00011164]
[1773272746147,0.21190359,70318.0,70292.0,0.00011164]
[1773272749049,0.21290359,70318.0,70292.0,0.00011164]
[1773272750065,0.21290359,70318.0,70292.0,0.10867031]
[1773272750290,0.21190359,70318.0,70292.0,0.10867031]
[1773272750648,0.21290359,70318.0,70292.0,0.10867031]
[1773272751389,0.2131236,70318.0,70292.0,0.10867031]
[1773272751955,0.2131236,70318.0,70292.0,0.03753923]
[1773272752159,0.2131236,70318.0,70292.0,0.07124335]
[1773272752365,0.2131236,70318.0,70292.0,0.00011164]
[1773272753003,0.2131236,70318.0,70293.0,0.03729142]
[1773272753302,0.2121236,70318.0,70293.0,0.03729142]
[1773272753657,0.2131236,70318.0,70293.0,0.03729142]
[1773272753864,0.2121236,70318.0,70293.0,0.03729142]
[1773272754262,0.2131236,70318.0,70293.0,0.03729142]
[1773272754746,0.2131236,70318.0,70284.0,0.0199494]
[1773272754747,0.12764616,70310.0,70284.0,0.0199494]
[1773272754916,0.00144,70309.0,70284.0,0.0185094]
[1773272755070,0.00144,70309.0,70284.0,0.0199494]
[1773272756726,0.07111566,70308.0,70285.0,0.07113893]
[1773272756931,0.07111566,70308.0,70286.0,0.01837409]
[1773272757795,0.07111566,70308.0,70276.0,0.00144]
[1773272757796,0.12755889,70300.0,70276.0,0.00144]
[1773272757999,0.00144,70299.0,70276.0,0.07258748]
[1773272758831,0.07112577,70298.0,70276.0,0.07258748]
[1773272760047,0.00034282,70297.0,70276.0,0.07258748]
[1773272760539,0.00034282,70297.0,70277.0,0.00672817]
[1773272761036,0.0711278,70296.0,70278.0,0.07114602]
[1773272761240,0.00044216,70295.0,70278.0,0.07114602]
[1773272762218,0.00044216,70295.0,70279.0,0.00672817]
[1773272762784,0.0711278,70296.0,70279.0,0.00672817]
[1773272763138,0.0711278,70297.0,70281.0,0.00689958]
[1773272763344,0.00144,70295.0,70278.0,0.07114582]
[1773272763643,0.00144,70294.0,70278.0,0.07804554]
[1773272763853,0.00182816,70294.0,70278.0,0.07804554]
[1773272765203,0.07113083,70293.0,70278.0,0.07804554]
[1773272765362,0.07113083,70293.0,70278.0,0.07114596]
[1773272765736,0.12755889,70300.0,70278.0,0.07114596]
[1773272765737,0.07149078,70309.0,70279.0,0.00699815]
[1773272765884,0.07122625,70310.0,70278.0,0.07114596]
[1773272765885,0.07122625,70310.0,70281.0,0.00699815]
[1773272766095,0.00144,70309.0,70281.0,0.00699815]
[1773272767203,0.07122625,70310.0,70282.0,0.07114197]
[1773272767204,0.07122573,70310.0,70282.0,0.07114197]
[1773272767417,0.07122573,70310.0,70283.0,0.00709367]
[1773272767625,0.0001116,70310.0,70291.0,0.00709367]
[1773272767802,0.07122533,70310.0,70293.0,0.00709367]
[1773272767998,0.07122533,70310.0,70295.0,0.00709367]
[1773272768255,0.07122533,70310.0,70281.0,0.07114197]
[1773272768256,0.00019005,70309.0,70283.0,0.00718622]
[1773272768459,0.14087908,70309.0,70283.0,0.00718622]
[1773272768639,0.00027754,70308.0,70283.0,0.00718622]
[1773272769341,0.00027754,70306.0,70283.0,0.00718622]
[1773272769501,0.00036363,70304.0,70283.0,0.00718622]
[1773272769733,0.00144,70305.0,70275.0,0.07114846]
[1773272769734,0.12755889,70300.0,70275.0,0.07114846]
[1773272769944,0.00036363,70299.0,70277.0,0.00718622]
[1773272771419,0.00036363,70299.0,70281.0,0.00748124]
[1773272771420,0.07112577,70298.0,70281.0,0.00748124]
[1773272771628,0.00144,70297.0,70281.0,0.00748124]
[1773272772028,0.00144,70297.0,70281.0,0.0002]
[1773272772262,0.00016805,70296.0,70281.0,0.0002]
[1773272772519,0.00016805,70296.0,70281.0,1e-08]
[1773272772943,0.00569378,70290.0,70273.0,0.0002]
[1773272773142,0.12755889,70291.0,70268.0,0.00603104]
[1773272773143,0.00569378,70288.0,70268.0,0.00603104]
[1773272773342,0.07113893,70285.0,70268.0,0.00603104]
[1773272773541,0.00569378,70284.0,70268.0,0.00603104]
[1773272774343,0.00569378,70284.0,70272.0,0.00043176]
[1773272775835,0.07114095,70283.0,70272.0,0.00043176]
[1773272776243,0.00144,70287.0,70272.0,0.00043176]
[1773272776244,0.0001571,70296.0,70273.0,0.00756398]
[1773272776444,0.07256902,70295.0,70273.0,0.00756398]
[1773272776639,0.07280274,70295.0,70273.0,0.00756398]
[1773272776864,0.07112902,70295.0,70273.0,0.00756398]
[1773272777044,0.00167372,70294.0,70273.0,0.00756398]
[1773272778411,0.07113083,70293.0,70275.0,0.00764254]
[1773272778590,0.0713569,70293.0,70275.0,0.00764254]
[1773272778972,0.07113083,70293.0,70275.0,0.00764254]
[1773272779175,0.00022607,70292.0,70272.0,0.00043176]
[1773272779396,0.00022607,70292.0,70272.0,0.0080743]
[1773272780425,0.07113286,70291.0,70273.0,0.0002]
[1773272780617,0.12755889,70290.0,70273.0,0.0002]
[1773272780790,0.00033176,70288.0,70273.0,0.0002]
[1773272780994,0.00033176,70288.0,70268.0,0.00791852]
[1773272780995,0.00033176,70286.0,70268.0,0.00791852]
[1773272781166,0.00039525,70286.0,70268.0,0.00791852]
[1773272782795,0.07113893,70285.0,70268.0,0.00791852]
[1773272785910,0.00026489,70279.0,70268.0,1e-08]
[1773272786118,0.00157015,70278.0,70268.0,1e-08]
[1773272786741,0.07114703,70277.0,70268.0,1e-08]
[1773272787149,0.07114703,70277.0,70265.0,0.0002]
[1773272787150,0.07114703,70277.0,70265.0,1e-08]
[1773272787366,0.00019504,70276.0,70265.0,1e-08]
[1773272788651,0.07114703,70277.0,70265.0,1e-08]
[1773272788841,0.07114703,70277.0,70265.0,0.0080538]
[1773272789043,0.2121735,70278.0,70267.0,0.00805379]
[1773272789044,0.00144,70278.0,70267.0,0.00805379]
[1773272790045,0.07114508,70279.0,70267.0,0.00805379]
[1773272790255,0.12780885,70290.0,70267.0,0.00805379]
[1773272790256,0.07113988,70285.0,70267.0,0.00805379]
[1773272790693,0.00144,70284.0,70267.0,0.00805379]
[1773272790851,0.07114095,70283.0,70269.0,0.00811812]
[1773272791247,0.00144,70282.0,70269.0,0.00811812]
[1773272791642,0.07114095,70283.0,70269.0,0.00811812]
[1773272791841,0.05105646,70287.0,70269.0,0.00811812]
[1773272792153,0.05105646,70287.0,70269.0,0.00818161]
[1773272793240,0.05105646,70287.0,70271.0,0.00817877]
[1773272793731,0.07135077,70294.0,70271.0,0.00817877]
[1773272793732,0.07113128,70293.0,70271.0,0.00817877]
[1773272793886,0.00144,70291.0,70271.0,0.00817877]
[1773272795176,0.00144,70291.0,70273.0,0.00823729]
[1773272795177,0.07113387,70290.0,70273.0,0.00823729]
[1773272795865,0.07113387,70290.0,70275.0,0.00823729]
[1773272798653,0.07113387,70290.0,70275.0,0.07114873]
[1773272798810,0.00144,70289.0,70276.0,0.008423]
[1773272799440,0.07113589,70288.0,70276.0,0.008423]
[1773272800665,0.00023774,70287.0,70269.0,0.07141851]
[1773272800865,0.21226648,70288.0,70270.0,0.00847506]
[1773272801068,0.07113589,70288.0,70270.0,0.00847506]
[1773272801264,0.07113589,70288.0,70271.0,0.0711531]
[1773272801495,0.00144,70287.0,70272.0,0.00847506]
[1773272802693,0.00072,70287.0,70272.0,0.00847506]
[1773272802903,0.02857589,70288.0,70272.0,0.00847506]
[1773272803113,0.06511589,70288.0,70272.0,0.00847506]
[1773272803464,0.06511589,70288.0,70274.0,0.00852519]
[1773272803808,0.06511589,70288.0,70276.0,0.00852519]
[1773272805415,0.06576551,70288.0,70270.0,0.00861731]
[1773272805627,0.00069153,70287.0,70270.0,0.00861731]
[1773272806618,0.00069153,70287.0,70269.0,0.00026349]
[1773272807010,0.20628743,70288.0,70270.0,0.00892073]
[1773272807206,0.14117154,70287.0,70270.0,0.00892073]
[1773272807409,0.06511589,70288.0,70270.0,0.00892073]
[1773272807656,0.00144,70287.0,70272.0,0.00892073]
[1773272807832,0.00244,70287.0,70272.0,0.00892073]
[1773272809012,0.00144,70287.0,70272.0,0.00892073]
[1773272809417,0.07113792,70286.0,70272.0,0.00892073]
[1773272809615,0.07113792,70286.0,70273.0,0.00896308]
[1773272811645,0.07113792,70286.0,70272.0,0.07115146]
[1773272811816,0.07113792,70286.0,70272.0,0.08015518]
[1773272812014,0.07113792,70286.0,70272.0,0.07115146]
[1773272812235,0.07113792,70286.0,70273.0,0.00908223]
[1773272812512,0.06363792,70286.0,70273.0,0.00908223]
[1773272812727,0.05757792,70287.0,70273.0,0.00908223]
[1773272813012,0.06363792,70286.0,70273.0,0.00908223]
[1773272813214,0.07113669,70288.0,70273.0,0.00908223]
[1773272813667,0.07113669,70288.0,70274.0,0.07115006]
[1773272813868,0.07257669,70288.0,70275.0,0.00908223]
[1773272814246,0.07257669,70288.0,70270.0,0.07115411]
[1773272814247,0.02314343,70286.0,70265.0,0.00911868]
[1773272814446,0.00111868,70285.0,70266.0,0.00144]
[1773272815599,0.00144,70284.0,70266.0,0.00144]
[1773272815802,0.07114095,70283.0,70268.0,0.00911867]
[1773272816002,0.07114095,70283.0,70269.0,0.00938216]
[1773272816205,0.00144,70282.0,70269.0,0.00938216]
[1773272816606,0.00144,70282.0,70270.0,0.00967801]
[1773272816961,0.00144,70282.0,70269.0,0.00026349]
[1773272817162,0.00063189,70281.0,70269.0,0.00026349]
[1773272817359,0.00144,70282.0,70269.0,0.00026349]
[1773272818207,0.07074298,70281.0,70271.0,0.00997985]
[1773272818513,0.07034298,70281.0,70271.0,0.00997985]
[1773272819019,0.00144,70280.0,70271.0,0.00997985]
[1773272819370,0.07034298,70281.0,70271.0,0.00997985]
[1773272820434,0.00144,70282.0,70272.0,0.01002389]
[1773272820592,0.07135463,70290.0,70272.0,0.01002389]
[1773272821406,0.07135463,70290.0,70274.0,0.01002389]
[1773272821602,0.00013582,70289.0,70273.0,0.00144]
[1773272821829,0.04253326,70283.0,70269.0,0.00026349]
[1773272821981,0.00144,70282.0,70271.0,0.0002]
[1773272822186,0.00144,70282.0,70269.0,0.00026349]
[1773272822793,0.07114298,70281.0,70269.0,0.00026349]
[1773272823605,0.07114298,70281.0,70260.0,0.07116351]
[1773272823606,0.02452388,70245.0,70228.0,0.34866502]
[1773272823806,0.02452388,70245.0,70231.0,0.02291861]
[1773272823807,0.00011149,70245.0,70231.0,0.02291861]
[1773272823999,0.04253326,70250.0,70232.0,0.01005322]
[1773272824192,0.04253326,70250.0,70232.0,0.01186511]
[1773272824598,0.04253326,70250.0,70227.0,0.07139485]
[1773272824599,0.04438713,70242.0,70227.0,0.0001992]
[1773272824897,0.00144,70241.0,70228.0,0.0110918]
[1773272825681,0.00037212,70242.0,70230.0,0.0100918]
[1773272826584,0.07118349,70241.0,70230.0,0.0100918]
[1773272827811,0.07118349,70241.0,70217.0,0.0003576]
[1773272827812,0.00186079,70239.0,70217.0,0.0003576]
[1773272828008,0.00186079,70239.0,70217.0,0.07156512]
[1773272828208,0.00186079,70239.0,70218.0,0.01011606]
[1773272828561,0.07153621,70237.0,70218.0,0.01011606]
[1773272828762,0.07118755,70237.0,70219.0,0.01103005]
[1773272829248,0.07118755,70237.0,70215.0,0.00144]
[1773272829249,0.07118755,70237.0,70200.0,0.0032]
[1773272829250,0.12775357,70230.0,70200.0,0.0032]
[1773272829540,0.00034866,70233.0,70208.0,0.01103005]
[1773272830433,0.00034866,70233.0,70207.0,0.09670838]
[1773272830434,0.00144,70232.0,70210.0,0.12775357]
[1773272830580,0.18807204,70241.0,70210.0,0.12775357]
[1773272830581,0.00144,70238.0,70213.0,0.01104646]
[1773272831134,0.00144,70238.0,70230.0,0.0002]
[1773272831961,0.00037212,70242.0,70230.0,0.0002]
[1773272831962,0.00181212,70242.0,70230.0,0.01124646]
[1773272832336,0.0003591,70251.0,70230.0,0.01124646]
[1773272832337,0.00144,70251.0,70232.0,0.01121278]
[1773272832519,0.07116525,70259.0,70235.0,0.07118957]
[1773272832706,0.00144,70253.0,70236.0,0.01121278]
[1773272832907,0.07148115,70260.0,70236.0,0.01121278]
[1773272832908,0.00144,70259.0,70236.0,0.01121278]
[1773272833337,0.00144,70259.0,70232.0,0.07156188]
[1773272833338,0.12775357,70250.0,70230.0,0.0002]
[1773272833611,5.34e-05,70249.0,70230.0,0.0002]
[1773272833808,0.00144,70248.0,70230.0,0.0002]
[1773272834023,5.34e-05,70247.0,70230.0,0.0002]
[1773272834255,5.34e-05,70247.0,70236.0,1e-08]
[1773272834471,5.34e-05,70247.0,70230.0,0.0002]
[1773272834672,0.0008898,70246.0,70230.0,0.0002]
[1773272836763,0.00087934,70244.0,70230.0,0.0002]
[1773272837981,0.07117944,70245.0,70231.0,0.01123948]
[1773272838372,0.07117944,70245.0,70230.0,0.0002]
[1773272838723,0.07117944,70245.0,70230.0,0.00019516]
[1773272838933,0.07117539,70249.0,70229.0,0.07119184]
[1773272839168,0.00144,70247.0,70230.0,0.00828211]
[1773272839387,0.00144,70247.0,70232.0,0.00828211]
[1773272839830,0.07154693,70250.0,70232.0,0.00972211]
[1773272840005,0.07298693,70250.0,70232.0,0.00972211]
[1773272840241,0.07298693,70250.0,70220.0,0.00144]
[1773272840242,0.12775357,70242.0,70220.0,0.00144]
[1773272840453,0.12775357,70242.0,70208.0,0.07121612]
[1773272840454,0.12775357,70230.0,70208.0,0.01114659]
[1773272840661,0.07119667,70228.0,70208.0,0.07265604]
[1773272840874,0.07119667,70228.0,70209.0,0.01258659]
[1773272841688,0.07119667,70228.0,70220.0,0.0002]
[1773272841932,0.07156879,70228.0,70220.0,0.0002]
[1773272842712,0.07156879,70228.0,70213.0,0.0002]
[1773272842907,0.07156879,70228.0,70210.0,0.0838012]
[1773272843116,0.07156879,70228.0,70211.0,0.01114659]
[1773272843280,0.07156879,70228.0,70207.0,0.0240507]
[1773272843281,0.00971706,70227.0,70207.0,0.0240507]
[1773272843475,0.00971706,70227.0,70207.0,0.09526837]
[1773272843885,0.00971706,70227.0,70207.0,0.10641496]
[1773272844287,0.00971706,70227.0,70208.0,0.01258659]
[1773272844530,0.21250707,70228.0,70208.0,0.01258659]
[1773272844830,0.07156879,70228.0,70210.0,0.01114659]
[1773272845397,0.00962505,70227.0,70184.0,0.0787689]
[1773272845625,0.00962505,70227.0,70175.0,7.5e-05]
[1773272845626,0.12775357,70220.0,70190.0,0.01114659]
[1773272845841,0.00952884,70220.0,70190.0,0.01114659]
[1773272846042,0.07,70221.0,70190.0,0.12775357]
[1773272846242,0.13995277,70226.0,70191.0,0.01114659]
[1773272846445,0.00144,70227.0,70191.0,0.01114659]
[1773272846646,0.01185376,70227.0,70192.0,0.00144]
[1773272846864,0.01041376,70225.0,70195.0,0.01114659]
[1773272848903,0.07120072,70224.0,70197.0,0.01114659]
[1773272851050,0.01002828,70218.0,70198.0,0.0712271]
[1773272851258,0.07,70219.0,70199.0,0.01258659]
[1773272851259,0.13995277,70217.0,70199.0,0.01258659]
[1773272851462,0.13995277,70216.0,70199.0,0.01258659]
[1773272851664,0.13995277,70218.0,70199.0,0.01258659]
[1773272851822,0.00993354,70216.0,70199.0,0.01114659]
[1773272852025,0.14988631,70216.0,70199.0,0.01114659]
[1773272852231,0.13995277,70215.0,70200.0,0.00144]
[1773272852439,0.13995277,70214.0,70200.0,0.00144]
[1773272852634,0.1497922,70213.0,70200.0,0.00144]
[1773272852836,0.13995277,70212.0,70200.0,0.00144]
[1773272853043,0.21116668,70211.0,70200.0,0.07266487]
[1773272853276,0.13995277,70210.0,70200.0,0.08381146]
[1773272853450,0.13995277,70209.0,70201.0,0.01114659]
[1773272853651,0.13995277,70208.0,70201.0,0.01114659]
[1773272853868,0.07120681,70220.0,70201.0,0.01114659]
[1773272854075,0.07120681,70218.0,70201.0,0.01114659]
[1773272854705,0.07120089,70224.0,70201.0,0.01114659]
[1773272854866,0.07120089,70224.0,70204.0,0.07122101]
[1773272855059,0.07120089,70224.0,70205.0,0.01114659]
[1773272855257,0.07264072,70225.0,70205.0,0.01114659]
[1773272855460,0.07120072,70225.0,70205.0,0.01114659]
[1773272855664,0.07119768,70227.0,70205.0,0.01114659]
[1773272856125,0.07119768,70227.0,70201.0,0.07122101]
[1773272856126,0.12775357,70220.0,70197.0,0.07142744]
[1773272856329,0.07119768,70227.0,70198.0,0.01114659]
[1773272856330,0.01060636,70219.0,70198.0,0.01114659]
[1773272857105,0.07120681,70218.0,70199.0,0.07122608]
[1773272857307,0.08171891,70218.0,70200.0,0.01258659]
[1773272858007,0.07120681,70218.0,70200.0,0.01258659]
[1773272858593,0.07120174,70223.0,70200.0,0.01258659]
[1773272858819,0.07120174,70223.0,70202.0,0.01114659]
[1773272859220,0.01032543,70222.0,70203.0,0.08236861]
[1773272859597,0.07,70218.0,70204.0,0.01114659]
[1773272861571,0.07,70218.0,70200.0,0.00144]
[1773272861572,0.01001126,70212.0,70183.0,0.07124232]
[1773272861764,0.01001126,70207.0,70190.0,0.01108265]
[1773272861963,0.01095241,70199.0,70161.0,0.02394781]
[1773272862194,0.00144,70202.0,70178.0,0.01108265]
[1773272862594,0.16934154,70208.0,70178.0,0.01108265]
[1773272862908,0.00144,70209.0,70181.0,0.01108265]
[1773272863110,0.01095241,70208.0,70183.0,0.01108265]
[1773272863889,0.01095241,70206.0,70185.0,0.01108265]
[1773272864312,0.01095241,70206.0,70186.0,0.00144]
[1773272864792,0.07,70202.0,70186.0,0.00144]
[1773272865214,0.07,70202.0,70187.0,0.01108265]
[1773272865783,0.07,70202.0,70188.0,0.07123724]
[1773272865998,0.07,70202.0,70189.0,0.01108265]
[1773272866956,0.00037189,70209.0,70189.0,0.01108265]
[1773272867190,0.00037189,70209.0,70191.0,0.01108265]
[1773272867962,0.00037189,70209.0,70192.0,0.07123318]
[1773272868158,0.00037189,70209.0,70193.0,0.01252265]
[1773272868752,0.00037189,70209.0,70156.0,0.03234816]
[1773272868753,0.01095241,70207.0,70156.0,0.03234816]
[1773272868937,0.81657338,70208.0,70144.0,0.01829681]
[1773272868938,0.81657338,70208.0,70171.0,0.01108265]
[1773272868939,0.16934154,70196.0,70171.0,0.01108265]
[1773272869135,0.16934154,70196.0,70161.0,0.07126449]
[1773272869136,0.12775357,70190.0,70161.0,0.07126406]
[1773272869383,0.12775357,70190.0,70171.0,0.0002]
[1773272869384,0.01095241,70189.0,70171.0,0.0002]
[1773272869637,0.01095241,70189.0,70172.0,0.00144]
[1773272870241,0.07123724,70188.0,70172.0,0.00144]
[1773272870388,0.01196716,70187.0,70173.0,0.00144]
[1773272870600,0.01196716,70187.0,70172.0,0.00144]
[1773272870977,0.01196716,70187.0,70161.0,0.08378528]
[1773272871189,0.01196716,70187.0,70161.0,0.07126263]
[1773272871374,0.01196716,70187.0,70162.0,0.00144]
[1773272871570,0.01233882,70187.0,70162.0,0.00144]
[1773272871794,0.01233882,70187.0,70163.0,0.0002]
[1773272872007,0.01233882,70187.0,70162.0,0.00144]
[1773272872247,0.01196716,70185.0,70163.0,0.0002]
[1773272872656,0.01196716,70185.0,70164.0,0.00144]
[1773272872875,0.07123927,70186.0,70164.0,0.00144]
[1773272873162,0.08302583,70186.0,70165.0,0.0116472]
[1773272873593,0.01196716,70185.0,70166.0,0.00144]
[1773272874016,0.07105867,70186.0,70167.0,0.0118472]
[1773272874413,0.07105867,70186.0,70167.0,0.0002]
[1773272874616,0.01196716,70185.0,70168.0,0.00144]
[1773272876612,0.01196716,70185.0,70159.0,0.0116472]
[1773272876613,0.0712413,70184.0,70154.0,0.07127177]
[1773272876852,0.0712413,70184.0,70156.0,0.0116472]
[1773272876853,0.01196716,70183.0,70156.0,0.0116472]
[1773272877371,0.0712413,70184.0,70168.0,0.0002]
[1773272877530,0.0712413,70184.0,70169.0,0.0130872]
[1773272880052,0.08501809,70187.0,70171.0,0.02162663]
[1773272880053,0.07161021,70187.0,70171.0,0.02162663]
[1773272880251,0.07161002,70187.0,70171.0,0.02162663]
[1773272880690,0.07124029,70185.0,70169.0,0.06955573]
[1773272880894,0.06288875,70184.0,70170.0,0.00144]
[1773272882173,0.07124029,70186.0,70170.0,0.00144]
[1773272882374,0.06288875,70185.0,70170.0,0.00144]
[1773272882980,0.0712413,70184.0,70171.0,0.0712545]
[1773272883387,0.13413005,70184.0,70171.0,0.0712545]
[1773272885063,0.07161031,70187.0,70171.0,0.0712545]
[1773272885286,0.07161001,70187.0,70171.0,0.09288206]
[1773272885664,0.06288875,70186.0,70171.0,0.09288206]
[1773272885863,0.06288875,70186.0,70171.0,0.0712545]
[1773272886472,0.06288875,70186.0,70168.0,0.0714545]
[1773272886473,0.06288875,70186.0,70168.0,0.0002]
[1773272886720,0.06288875,70186.0,70169.0,0.00144]
[1773272886925,0.06288875,70186.0,70170.0,0.00144]
[1773272887134,0.00022001,70184.0,70170.0,0.00144]
[1773272887314,0.06288875,70183.0,70170.0,0.00144]
[1773272887516,0.06288875,70183.0,70169.0,0.07145614]
[1773272887517,0.06288875,70183.0,70169.0,0.0002]
[1773272887714,0.06288875,70183.0,70170.0,0.00144]
[1773272888331,0.06288875,70183.0,70171.0,0.00144]
[1773272889195,0.06288875,70183.0,70169.0,0.0002]
[1773272889196,0.06288875,70181.0,70172.0,0.00144]
[1773272890050,0.06288875,70181.0,70171.0,0.00144]
[1773272890247,0.06288875,70181.0,70170.0,0.00144]
[1773272890757,0.06288875,70181.0,70146.0,0.07127909]
[1773272890912,0.06288875,70179.0,70154.0,0.07271177]
[1773272891125,0.06288875,70177.0,70150.0,0.07127564]
[1773272891320,0.07124739,70178.0,70151.0,0.00144]
[1773272891321,0.06288875,70169.0,70151.0,0.00144]
[1773272891681,0.06288875,70170.0,70151.0,0.00144]
[1773272891817,0.07124739,70178.0,70151.0,0.00144]
[1773272891818,0.06288875,70178.0,70151.0,0.00144]
[1773272892008,0.06288875,70178.0,70149.0,0.0003667]
[1773272892222,0.06288875,70168.0,70149.0,0.0003667]
[1773272893489,0.06288875,70166.0,70149.0,0.07164349]
[1773272893762,0.06288875,70166.0,70149.0,0.0003667]
[1773272893966,0.06288875,70166.0,70149.0,0.07164324]
[1773272894323,0.06288875,70166.0,70149.0,0.0003667]
[1773272894720,0.06288875,70166.0,70149.0,0.07164311]
[1773272895557,0.0712606,70165.0,70149.0,0.07164311]
[1773272895766,0.06288875,70164.0,70149.0,0.07164311]
[1773272895965,0.06288875,70164.0,70149.0,0.0003667]
[1773272896186,0.06288875,70164.0,70149.0,0.07164326]
[1773272896385,0.06288875,70164.0,70149.0,0.07184326]
[1773272896611,0.06288875,70164.0,70149.0,0.0005667]
[1773272896822,0.06326018,70164.0,70149.0,0.07184318]
[1773272897440,0.06326018,70164.0,70150.0,0.00144]
[1773272897644,0.07126263,70163.0,70151.0,0.07127482]
[1773272900253,0.29686468,70180.0,70151.0,0.07127482]
[1773272900460,0.29686468,70180.0,70151.0,0.07164625]